[Event "FRA-ch Teams Top 16-A 2022"]
[Site "Chartres"]
[Date "2022.06.12"]
[Round "4.17"]
[White "Van Foreest, Lucas"]
[Black "Bacrot, Etienne"]
[Result "1/2-1/2"]
[ECO "C10"]
[WhiteElo "2572"]
[BlackElo "2638"]
[Annotator "TA"]
[PlyCount "55"]
[EventDate "2022.06.09"]
[EventType "team-tourn"]
[EventCountry "FRA"]
[SourceTitle "playchess.com"]
[Source "ChessBase"]
[SourceQuality "1"]
[TimeControl "40/5400+30:1800+30"]

{[%evp 18,55,43,48,56,44,52,42,43,45,35,35,39,0,0,0,16,16,18,7,7,7,18,8,5,0,13,13,13,18,9,24,18,0,0,0,0,0,0,2]} 1. e4 {[%emt 0:00:07]} c5 {[%emt 0:12:38]} 2. c3 {[%emt 0:02:19]} d5 {[%emt 0:00:06]} 3. exd5 {[%emt 0:00:07]} Qxd5 {[%emt 0:00:03]} 4. d4 {[%emt 0:00:06]} Nf6 {[%emt 0:02:16]} 5. Nf3 {[%emt 0:00:05]} e6 {[%emt 0:00:15]} 6. Na3 {[%emt 0:00:49]} Nc6 {[%emt 0:01:12]} 7. Be3 {[%emt 0:00:58]} cxd4 {[%emt 0:11:32]} 8. Nb5 {[%emt 0:00:10]} Qd8 {[%emt 0:00:26]} 9. Nbxd4 {[%emt 0:00:06]} Nxd4 {[%emt 0:01:31]} 10. Bxd4 {[%emt 0:02:13]} Be7 {[%emt 0:03:51] C10: French with 3 Nc3: Unusual Black 3rd moves and 3...dxe4.} 11. Bd3 {[%emt 0:00:04]} O-O {[%emt 0:00:07]} 12. Qc2 {[%emt 0:00:13]} h6 {[%emt 0:00:35] White is slightly better.} 13. O-O-O {[%emt 0:02:45] [#] Hoping for Bxf6.} Qa5 {[%emt 0:09:56] [#]} 14. g4 $146 {[%emt 0:10:48]} ({Predecessor:} 14. Kb1 b5 15. Be4 Rb8 16. Ne5 Bb7 17. Bxb7 Rxb7 18. Rd3 Rc8 19. Rg3 b4 20. Nxf7 bxc3 21. Nxh6+ {½-½ (52) Giri,A (2776)-Nepomniachtchi,I (2789) chess24.com INT 2021}) 14... Nxg4 {[%emt 0:15:58] aiming for ...e5.} 15. Qe2 {[%emt 0:19:17] Against e5} (15. Bxg7 $5 Kxg7 16. Rdg1 Bg5+ 17. Nxg5 Qxg5+ 18. Kb1 $14) 15... e5 {[%emt 0:20:27]} 16. Nxe5 {[%emt 0:03:12]} Bg5+ {[%emt 0:01:11]} 17. Kb1 $1 {[%emt 0:00:04]} ({Reject} 17. Kc2 Re8 18. Rhe1 Nxe5 19. Bxe5 Bf4 $17) 17... Nxe5 {[%emt 0:00:57]} (17... Be6 $2 18. b4 Bxa2+ 19. Qxa2 $18) 18. Qxe5 {[%emt 0:01:55]} Qxe5 {[%emt 0:00:05]} 19. Bxe5 {[%emt 0:00:03]} Bg4 {[%emt 0:00:32]} 20. Rde1 {[%emt 0:07:50]} Rad8 $132 {[%emt 0:00:42][%mdl 2048] Black puts up resistance} 21. Bc2 {[%emt 0:00:45]} Bd2 {[%emt 0:08:44]} 22. Reg1 {[%emt 0:03:29]} f6 {[%emt 0:00:03]} 23. Bc7 {[%emt 0:05:09]} Bf3 $1 {[%emt 0:00:28] Threatens to win with ...Rd7.} 24. Bxd8 {[%emt 0:00:07]} Rxd8 {[%emt 0:00:07] [#]} 25. h4 $1 {[%emt 0:00:17] Strongly threatening Rh3. The position is equal.} Bxh1 {[%emt 0:01:48]} 26. Rxh1 {[%emt 0:00:33]} Re8 {[%emt 0:01:48]} 27. h5 {[%emt 0:02:16]} Re1+ {[%emt 0:00:34]} 28. Rxe1 {[%emt 0:38:43] Weighted Error Value: White=0.05 (flawless) /Black=0.02 (flawless)} 1/2-1/2

[Event "FRA-ch Teams Top 16-A 2022"]
[Site "Chartres"]
[Date "2022.06.12"]
[Round "4.18"]
[White "Naiditsch, Arkadij"]
[Black "Piorun, Kacper"]
[Result "1-0"]
[ECO "C07"]
[WhiteElo "2654"]
[BlackElo "2635"]
[Annotator "TA"]
[PlyCount "71"]
[EventDate "2022.06.09"]
[EventType "team-tourn"]
[EventCountry "FRA"]
[SourceTitle "playchess.com"]
[Source "ChessBase"]
[SourceQuality "1"]
[TimeControl "40/5400+30:1800+30"]

{[%evp 21,71,0,0,-23,-11,-17,-16,-16,0,-8,0,-22,-25,-86,-82,-72,-56,-81,-76,-65,-68,-86,-47,-122,-45,-41,-36,-17,-79,-91,-89,-91,-85,-116,-113,-123,-76,-84,-77,-96,18,13,59,54,363,364,353,329,394,371,897,876]} 1. e4 {[%emt 0:01:29] Rozentalis,E} e6 {[%emt 1:31:00]} 2. d4 {[%emt 0:00:11]} d5 {[%emt 0:00:00]} 3. Nd2 {[%emt 0:00:05]} c5 {[%emt 0:00:00]} 4. exd5 {[%emt 0:00:11]} Qxd5 {[%emt 0:00:00]} 5. Ngf3 {[%emt 0:00:08]} cxd4 {[%emt 0:00:00]} 6. Bc4 {[%emt 0:00:07]} Qd6 {[%emt 0:00:00]} 7. Qe2 {[%emt 0:00:51]} Nf6 {[%emt 0:00:00]} 8. Nb3 {[%emt 1:31:28]} Nc6 {[%emt 0:00:00]} 9. Bg5 {[%emt 0:00:00]} a6 {[%emt 0:00:00]} 10. O-O-O {[%emt 0:00:00]} b5 {[%emt 0:00:00]} 11. Bd3 {[%emt 0:00:00]} Be7 {[%emt 0:00:00]} 12. Kb1 {[%emt 0:00:00][%cal Of3d4] C07: French Tarrasch: 3...c5, 4 Ngf3 and 4 exd5 Qxd5.} Bb7 {[%emt 0:00:00]} 13. Nbxd4 {[%emt 0:00:00]} Nxd4 {[%emt 0:00:00]} 14. Nxd4 {[%emt 0:03:00][%cal Od4f5] The position is equal.} Qc5 {[%emt 0:00:00] Against Nf5 is the legacy move (14...0-0).} (14... Bxg2 $2 15. Nf5 exf5 16. Bxb5+ $1 axb5 17. Rxd6 $18) 15. h4 {[%emt 0:00:00][%cal Oh1e1]} O-O {[%emt 0:00:00] [#]} 16. Nb3 $146 {[%emt 0:00:00]} (16. Rhe1 $5) ({Predecessor:} 16. Rhe1 Rfe8 17. Nf3 h6 18. Ne5 hxg5 19. hxg5 g6 20. gxf6 Bxf6 21. f4 Rad8 22. Qg4 Bg7 23. Nxf7 Kxf7 24. Bxg6+ Kf8 25. Rxd8 Rxd8 26. Qxe6 {1-0 (26) Rozentalis,E (2588)-Luther,T (2604) Panormo 2001 CBM 084 Extra [Rozentalis,E]}) 16... Qc7 {[%emt 0:07:30]} 17. h5 {[%emt 0:00:00]} (17. Rhe1 $11) 17... h6 $17 {[%emt 0:00:00]} ({Much worse is} 17... Bxg2 18. Rhg1 Bd5 19. Bh6 $11) 18. Bd2 {[%emt 0:00:00]} b4 {[%emt 0:00:00]} (18... Bxg2 $2 19. Rhg1 Qb7 20. Bxh6 $1 {[%mdl 512]} gxh6 21. f3 $18) 19. Rh4 {[%emt 0:00:00]} a5 {[%emt 0:00:00]} 20. Bf4 {[%emt 0:00:00]} Qc6 {[%emt 0:00:00]} 21. Nd4 {[%emt 0:00:00]} Qxg2 {[%emt 0:00:00]} 22. Be5 {[%emt 0:00:00]} (22. Rhh1 $1 $15 Qd5 23. Bxh6 gxh6 24. Qe3 Qxh1 25. Rxh1 Bxh1 26. Qxh6) 22... Rfd8 {[%emt 0:00:00]} (22... Qg5 $17 23. Rh3 Qg4) 23. Rh2 $15 {[%emt 0:00:00]} Qd5 {[%emt 0:00:00][%cal Of6g4] Threatens to win with ...Ng4!} (23... Qg5 $5 {[%cal Re7d6]} 24. f4 Qg4 $15) 24. Rg1 {[%emt 0:00:00] Against Ng4} Kf8 {[%emt 0:00:00]} 25. Qe3 {[%emt 0:00:00]} Bd6 {[%emt 0:00:00]} 26. Bxf6 {[%emt 0:00:00]} gxf6 {[%emt 0:00:00]} ({Much less strong is} 26... Bxh2 27. Bxg7+ Ke7 28. Re1 $18) 27. Rh4 {[%emt 0:00:00] Strongly threatening Be4.} Be5 {[%emt 0:00:00][%cal Re5d4]} 28. Nb3 {[%emt 0:00:00][%cal Bd4b3,Bb3c5,Bc5a6][%mdl 32]} a4 {[%emt 0:00:00]} (28... f5 $142 {Hoping for ...Bg7.} 29. Qxh6+ Ke7) 29. Nc5 $17 {[%emt 0:00:00] [#]} Bc6 {[%emt 0:00:00] And now ...a3 would win. This bishop pair is nice.} 30. Rxb4 {[%emt 0:00:00]} Rab8 {[%emt 0:01:44]} (30... f5 $17 {aiming for ...f4.} 31. Qxh6+ Ke7 32. Qg5+ Bf6) 31. Na6 $11 {[%emt 0:02:41] The board is on fire.} Rb7 {[%emt 0:00:04]} (31... Rbc8 $11) 32. a3 {[%emt 0:00:27]} Bd4 $2 {[%emt 0:02:01][%mdl 8192] Loses the game.} ({Black should play} 32... Ke7 $14) 33. Qxh6+ $18 {[%emt 0:00:39]} ({Not} 33. Qg3 Qg5 34. Qh2 Qe5 $17) 33... Ke7 {[%emt 0:00:03] [#]} 34. Qd2 {[%emt 0:02:19]} Ra7 {[%emt 0:02:23]} (34... Qxh5 $2 35. Rxb7+ Bxb7 36. Qb4+ Rd6 37. Qxb7+ $18) 35. h6 {[%emt 0:00:33]} Bxb2 $2 {[%emt 0:01:27]} (35... Be5 36. Qe1 Qd6) 36. Rxb2 {[%emt 0:00:47] Weighted Error Value: White=0.14 (very precise) /Black=0.47} 1-0

[Event "FRA-ch Teams Top 16-A 2022"]
[Site "Chartres"]
[Date "2022.06.12"]
[Round "4.19"]
[White "Malakhov, Vladimir"]
[Black "Fressinet, Laurent"]
[Result "1/2-1/2"]
[ECO "C54"]
[WhiteElo "2652"]
[BlackElo "2630"]
[Annotator "TA"]
[PlyCount "93"]
[EventDate "2022.06.09"]
[EventType "team-tourn"]
[EventCountry "FRA"]
[SourceTitle "playchess.com"]
[Source "ChessBase"]
[SourceQuality "1"]
[TimeControl "40/5400+30:1800+30"]

{[%evp 10,93,20,12,27,-8,-4,-6,0,-9,16,12,15,0,11,5,4,5,4,7,17,16,16,16,16,14,13,16,21,21,15,15,16,17,18,14,15,15,15,14,14,10,10,8,25,8,13,30,38,0,8,8,8,8,8,8,8,8,8,8,8,8,8,8,8,8,8,8,8,8,8,8,8,8,8,8,8,8,8,8,8,8,8,8,8,8]} 1. e4 {[%emt 0:00:09]} e5 {[%emt 0:00:22]} 2. Nf3 {[%emt 0:00:06]} Nc6 {[%emt 0:00:09]} 3. Bc4 {[%emt 0:00:08]} Nf6 {[%emt 0:00:21]} 4. d3 {[%emt 0:00:06]} Bc5 {[%emt 0:00:19]} 5. c3 {[%emt 0:00:27]} d6 {[%emt 0:00:30]} 6. O-O {[%emt 0:00:43]} a5 {[%emt 0:00:04] C54: Giuoco Piano: 4 c3 Nf6, main lines with 5 d4 and 5 d3.} (6... O-O {feels hotter.} 7. Bg5 h6 8. Bh4 g5) 7. Be3 {[%emt 0:04:09]} Bxe3 {[%emt 0:04:22]} 8. fxe3 {[%emt 0:00:04]} O-O {[%emt 0:00:14]} 9. Nbd2 {[%emt 0:00:08] [#]} Be6 $146 {[%emt 0:01:32]} ({Predecessor:} 9... Ne7 10. d4 Ng6 11. Bb3 b5 12. Bc2 a4 13. a3 c5 14. Bd3 Qb6 15. b4 c4 {0-1 (40) Zambrana,O (2440)-Anton Guijarro,D (2678) Linares 2019}) 10. Bxe6 {[%emt 0:02:55]} fxe6 {[%emt 0:04:16]} 11. d4 {[%emt 0:00:19]} a4 {[%emt 0:12:37]} 12. b4 {[%emt 0:08:35]} axb3 {[%emt 0:03:11]} 13. axb3 {[%emt 0:00:05]} Rxa1 {[%emt 0:07:24]} 14. Qxa1 {[%emt 0:00:46]} d5 {[%emt 0:01:02]} 15. Qb1 {[%emt 0:04:24]} Nxe4 {[%emt 0:07:27]} 16. Nxe4 {[%emt 0:00:52]} dxe4 {[%emt 0:00:15]} 17. Qxe4 {[%emt 0:00:06]} Qd5 {[%emt 0:02:23]} 18. Ng5 {[%emt 0:03:39][%csl Gg5][%cal Re4h7,Bf3g5,Bg5e4,Be4c5][%mdl 32] [#]} Rxf1+ {[%emt 0:06:08]} 19. Kxf1 {[%emt 0:00:30]} Qxe4 {[%emt 0:00:09]} 20. Nxe4 {[%emt 0:00:05]} exd4 {[%emt 0:04:12]} 21. exd4 $11 {[%emt 0:00:45][%mdl 4096] Endgame KN-KN} h6 {[%emt 0:00:25]} 22. Nc5 {[%emt 0:04:00]} Nd8 {[%emt 0:01:16]} 23. Ke2 {[%emt 0:01:01]} Kf7 {[%emt 0:05:22]} 24. Ke3 {[%emt 0:00:14]} Ke7 {[%emt 0:01:01]} 25. h4 {[%emt 0:02:25]} b6 {[%emt 0:01:51]} 26. Ne4 {[%emt 0:09:46]} Nf7 {[%emt 0:03:59]} 27. h5 {[%emt 0:00:32]} Kd7 {[%emt 0:07:01]} 28. c4 {[%emt 0:01:22]} c6 {[%emt 0:04:31]} 29. b4 {[%emt 0:15:00]} b5 {[%emt 0:03:51] The position is equal.} 30. Kd3 {[%emt 0:09:39]} Ke7 {[%emt 0:11:17]} 31. cxb5 {[%emt 0:04:27]} cxb5 {[%emt 0:00:02]} 32. Nc3 {[%emt 0:00:06]} Nd6 {[%emt 0:00:27]} 33. Ke2 {[%emt 0:08:05]} g6 {[%emt 0:03:27]} 34. hxg6 {[%emt 0:00:18] [#] Hoping for Kf3.} Kf6 {[%emt 0:00:05]} 35. Kf3 {[%emt 0:01:53] Threatens to win with Ne4+.} Kxg6 {[%emt 0:00:03]} 36. Kf4 {[%emt 0:00:09] And now Ke5 would win.} Kf7 {[%emt 0:00:13]} 37. d5 {[%emt 0:02:00]} exd5 {[%emt 0:00:33]} 38. Ke5 {[%emt 0:00:08]} Nc4+ {[%emt 0:01:02]} 39. Kd4 {[%emt 0:00:07]} Na3 {[%emt 0:01:42]} 40. Nxd5 {[%emt 0:00:09]} Ke6 {[%emt 0:03:12]} 41. Kc5 {[%emt 0:35:43]} Ke5 {[%emt 0:02:37]} 42. Nc3 {[%emt 0:00:00]} Kf4 {[%emt 0:01:08]} 43. Nxb5 {[%emt 0:00:00]} Nc2 {[%emt 0:00:05]} 44. Nd4 {[%emt 0:00:00]} Nxb4 {[%emt 0:00:04]} 45. Kxb4 {[%emt 0:00:00]} Kg3 {[%emt 0:00:03]} 46. Nf5+ {[%emt 0:00:00]} Kxg2 {[%emt 0:00:03]} 47. Nxh6 {[%emt 0:00:00] A balanced but interesting game.  Weighted Error Value: White=0.04 (flawless) /Black=0.02 (flawless)} 1/2-1/2

[Event "FRA-ch Teams Top 16-A 2022"]
[Site "Chartres"]
[Date "2022.06.12"]
[Round "4.20"]
[White "Ragger, Markus"]
[Black "Abergel, Thal"]
[Result "1-0"]
[ECO "B41"]
[WhiteElo "2636"]
[BlackElo "2378"]
[Annotator "TA"]
[PlyCount "73"]
[EventDate "2022.06.09"]
[EventType "team-tourn"]
[EventCountry "FRA"]
[SourceTitle "playchess.com"]
[Source "ChessBase"]
[SourceQuality "1"]
[TimeControl "40/5400+30:1800+30"]

{[%evp 14,73,45,48,38,49,52,60,66,58,70,69,91,78,95,101,120,110,168,176,181,132,208,194,183,172,239,200,251,227,219,231,503,488,540,535,519,503,727,712,660,503,491,483,477,467,792,827,800,810,809,796,907,898,863,868,950,842,1047,955,1024,945]} 1. e4 {[%emt 0:02:18]} c5 {[%emt 0:00:09]} 2. Nf3 {[%emt 0:00:05]} e6 {[%emt 0:00:22]} 3. d4 {[%emt 0:00:04]} cxd4 {[%emt 0:00:26]} 4. Nxd4 {[%emt 0:00:05]} a6 {[%emt 0:00:20]} 5. c4 {[%emt 0:00:05]} Nf6 {[%emt 0:00:10]} 6. Nc3 {[%emt 0:00:03]} Qc7 {[%emt 0:01:00]} 7. Be2 {[%emt 0:00:07]} b6 {[%emt 0:00:27]} 8. O-O {[%emt 0:04:29][%cal Oe4e5] Strongly threatening e5!} Bb7 {[%emt 0:00:10] B41: Sicilian: Kan Variation: 5 c4.} 9. f3 {[%emt 0:03:01]} Bd6 {[%emt 0:12:32]} 10. Kh1 {[%emt 0:01:36][%cal Od4b5] [#] Threatens to win with Ndb5!} Be7 {[%emt 0:09:46] White is slightly better.} 11. Be3 {[%emt 0:04:03]} d6 {[%emt 0:00:14]} 12. Qd2 {[%emt 0:03:17] [#]} h5 $146 {[%emt 0:01:33]} ({Predecessor:} 12... Nbd7 13. Rac1 O-O 14. Rfd1 Rac8 15. Bf1 Rfd8 16. Qf2 Qb8 17. a3 Re8 18. b4 Bd8 {1-0 (58) Svane,F (2421)-Pour Agha Bala,A (2432) Tornelo INT 2020}) 13. Rfc1 {[%emt 0:05:46] White is more active.} h4 {[%emt 0:02:44]} 14. a4 {[%emt 0:00:22]} h3 {[%emt 0:03:39]} 15. g4 {[%emt 0:02:58][%cal Bg2g4,Bg4g5][%mdl 32]} Nbd7 {[%emt 0:00:58]} (15... Nfd7 $16) 16. g5 $36 {[%emt 0:20:32][%mdl 2048] White is on the roll.} Nh5 {[%emt 0:01:53]} 17. Nd5 {[%emt 0:00:05]} Qd8 {[%emt 0:11:09]} (17... exd5 $16 18. cxd5 Qb8) 18. Nxe7 {[%emt 0:01:10]} Qxe7 {[%emt 0:00:13]} 19. Rd1 {[%emt 0:00:48]} f6 {[%emt 0:09:03]} (19... f5 {was called for.}) 20. Nc2 {[%emt 0:08:20]} f5 {[%emt 0:07:54]} 21. Qxd6 {[%emt 0:04:43] aiming for Qc7.} fxe4 {[%emt 0:07:19] [#]} 22. f4 {[%emt 0:00:22]} ({Weaker is} 22. Qc7 Nc5 23. Qxe7+ (23. Qxb6 $2 exf3 24. Bxf3 Bxf3+ $19) 23... Kxe7 $15) 22... Qxd6 $2 {[%emt 0:04:12]} (22... g6 23. b4 Rc8) 23. Rxd6 {[%emt 0:00:07] White is clearly winning.} O-O-O {[%emt 0:00:49]} 24. Rad1 {[%emt 0:05:03]} g6 {[%emt 0:08:44]} 25. Rxe6 {[%emt 0:04:07]} Rdf8 {[%emt 0:01:46]} 26. Bg4 {[%emt 0:02:25]} Nxf4 {[%emt 0:01:33]} 27. Re8+ {[%emt 0:06:48]} Rxe8 {[%emt 0:01:22]} 28. Bxd7+ {[%emt 0:00:02][%cal Bg4d7,Bd7e8,Be8g6,Bg6f5,Bf5h3][%mdl 32] This bishop pair is nice.} Kd8 {[%emt 0:03:00][%cal Of4d3]} 29. Bxe8+ {[%emt 0:00:05]} ({Not} 29. Bxf4 e3+ 30. Kg1 e2 $18) 29... Nd3 {[%emt 0:03:31]} (29... Kxe8 $142 30. Bxf4 Ke7) 30. Bxg6 {[%emt 0:00:51]} Ke7 {[%emt 0:01:38]} 31. Bf5 {[%emt 0:04:59]} Rf8 {[%emt 0:04:48]} 32. Bxh3 {[%emt 0:02:20]} Nf2+ {[%emt 0:00:43]} 33. Bxf2 {[%emt 0:00:26] And now Rd7+ would win.} e3+ {[%emt 0:00:01]} 34. Kg1 {[%emt 0:00:44]} exf2+ {[%emt 0:00:03]} 35. Kf1 {[%emt 0:00:05] Rd7+ is the strong threat.} Bf3 {[%emt 0:00:03]} 36. Rd7+ {[%emt 0:01:26]} Ke8 {[%emt 0:00:01]} 37. Rd2 {[%emt 0:01:32] Weighted Error Value: White=0.13 (very precise) /Black=0.38} 1-0

[Event "FRA-ch Teams Top 16-A 2022"]
[Site "Chartres"]
[Date "2022.06.12"]
[Round "4.21"]
[White "Vlachos, Anatole"]
[Black "Bellahcene, Bilel"]
[Result "0-1"]
[ECO "C00"]
[WhiteElo "2410"]
[BlackElo "2521"]
[Annotator "TA"]
[PlyCount "108"]
[EventDate "2022.06.09"]
[EventType "team-tourn"]
[EventCountry "FRA"]
[SourceTitle "playchess.com"]
[Source "ChessBase"]
[SourceQuality "1"]
[TimeControl "40/5400+30:1800+30"]

{[%evp 17,108,0,0,-8,0,-21,0,-18,0,-23,0,0,14,0,6,0,12,2,18,0,0,-20,9,0,24,0,4,9,16,10,12,10,52,53,73,54,56,15,17,0,6,0,0,-7,0,-32,-27,-79,-47,-50,-51,-50,-48,-41,-40,-37,-41,-40,-44,-86,-45,-124,-97,-104,-87,-206,-197,-529,-494,-636,-632,-625,-613,-615,-610,-6087,-6087,-6070,-6070,-6070,-5377,-5193,-5097,-29965,-29965,-29960,-29965,-29967,-29953,-5320,-5306,-5097,-4845]} 1. e4 {[%emt 0:00:02]} c5 {[%emt 0:05:49]} 2. Nf3 {[%emt 0:00:07]} e6 {[%emt 0:00:03]} 3. g3 {[%emt 0:00:13]} Nc6 {[%emt 0:00:01]} 4. Bg2 {[%emt 0:00:06]} Nf6 {[%emt 0:00:02]} 5. d3 {[%emt 0:01:52]} d5 {[%emt 0:00:44]} 6. Nbd2 {[%emt 0:00:09]} Be7 {[%emt 0:00:03]} 7. O-O {[%emt 0:00:07]} O-O {[%emt 0:00:02]} 8. Re1 {[%emt 0:01:04]} b5 {[%emt 0:00:04]} 9. a4 {[%emt 0:07:09]} b4 {[%emt 0:00:43]} 10. exd5 {[%emt 0:01:07] C00: French: Unusual White 2nd moves.} Nxd5 {[%emt 0:00:38]} 11. Nb3 {[%emt 0:17:18]} Bb7 {[%emt 0:01:13] [#]} 12. a5 $146 {[%emt 0:03:58] The position is equal.} ({Predecessor:} 12. Nfd2 Rc8 13. Qg4 Nd4 14. Nxd4 cxd4 15. Nc4 Nf6 16. Qe2 Bxg2 17. Kxg2 b3 18. cxb3 {0-1 (52) D'Amore,C (2463)-Nielsen,P (2668) Gothenburg 2005}) 12... Rc8 {[%emt 0:02:26]} 13. Nfd2 {[%emt 0:02:42]} Ba8 {[%emt 0:06:34]} 14. Nc4 {[%emt 0:03:40]} h6 {[%emt 0:03:25]} 15. h4 {[%emt 0:58:26]} Re8 {[%emt 0:09:31]} 16. Bd2 {[%emt 0:00:00]} Nb8 {[%emt 0:06:44]} 17. Qe2 {[%emt 0:00:00]} Qc7 {[%emt 0:04:40]} 18. Rad1 {[%emt 0:00:00]} Nd7 {[%emt 0:04:56]} 19. Bc1 {[%emt 0:00:00]} Qc6 {[%emt 0:06:59][%cal Od5f4]} 20. Qf1 {[%emt 0:00:00]} (20. Qh5 {is interesting.} Qa6 21. Qg4 N5f6 22. Qh3) 20... Qa6 {[%emt 0:00:36]} 21. Qe2 {[%emt 0:00:00]} Bc6 {[%emt 0:00:22]} 22. Qg4 {[%emt 0:00:00] Bxh6 is the strong threat.} N5f6 {[%emt 0:08:44]} 23. Qh3 {[%emt 0:00:00]} Bd5 {[%emt 0:07:43]} 24. g4 {[%emt 0:00:00]} Nf8 {[%emt 0:05:23]} ({Don't play} 24... Bxc4 25. dxc4 Qxc4 26. Bf1 (26. g5 Qxc2 27. a6 Red8 $14) 26... Qxg4+ 27. Qxg4 Nxg4 28. Rxd7 $16) (24... Qc6 $5 {[%cal Rd5g2]}) 25. g5 {[%emt 0:00:00]} hxg5 {[%emt 0:00:24]} 26. hxg5 {[%emt 0:00:00]} N6h7 {[%emt 0:04:02]} 27. Qg4 {[%emt 0:00:00]} (27. f4 $5 {[%cal Rg2e4]}) 27... Red8 {[%emt 0:02:05]} 28. Ne5 {[%emt 0:00:00]} Qb7 {[%emt 0:03:29]} 29. g6 {[%emt 0:00:00]} fxg6 $1 {[%emt 0:00:42]} 30. Nxg6 {[%emt 0:00:00]} Nf6 {[%emt 0:04:31]} 31. Nxe7+ {[%emt 0:00:16]} Qxe7 {[%emt 0:00:01]} 32. Qh3 {[%emt 0:00:17]} (32. Qg3 $11 {remains equal.}) 32... Bxg2 {[%emt 0:01:07]} 33. Qxg2 {[%emt 0:06:08]} c4 $1 {[%emt 0:03:05]} 34. dxc4 {[%emt 0:00:03]} Rxc4 {[%emt 0:00:14]} 35. Bg5 {[%emt 0:00:04]} N8h7 {[%emt 0:05:03][%cal Bf8h7,Bh7f6,Bf6d5][%mdl 32]} 36. Bxf6 {[%emt 0:00:01]} Nxf6 {[%emt 0:00:01]} 37. Rxd8+ {[%emt 0:00:04]} Qxd8 {[%emt 0:00:05]} 38. Qf3 {[%emt 0:01:06]} Qe8 {[%emt 0:02:17]} 39. Nd2 {[%emt 0:02:29] White is on the road to losing.} ({White should try} 39. Kf1 $15) 39... Rxc2 {[%emt 0:04:07]} 40. Ne4 {[%emt 0:00:13] [#]} Qg6+ {[%emt 0:01:19]} 41. Ng3 {[%emt 0:30:12]} (41. Qg2 $17 Ng4 42. b3) 41... Nd5 $19 {[%emt 0:01:47]} ({Worse is} 41... Rxb2 42. Rxe6 b3 43. Kg2 $15) 42. Qd1 $2 {[%emt 0:00:00]} (42. Re5 {is more resistant.}) 42... Rxb2 {[%emt 0:03:26]} 43. Qd4 {[%emt 0:00:00]} Rb1 {[%emt 0:00:39]} 44. Rxb1 {[%emt 0:00:00]} Qxb1+ {[%emt 0:00:02][%mdl 4096] Endgame KQN-KQN} 45. Kg2 {[%emt 0:00:00]} b3 {[%emt 0:03:30] Strongly threatening ...b2.} 46. Qxa7 {[%emt 0:00:00]} b2 {[%emt 0:00:01]} 47. Qb8+ {[%emt 0:00:00]} Kh7 {[%emt 0:02:33] ( -> ...Qc1)} 48. a6 {[%emt 0:00:00]} Qa2 {[%emt 0:04:58]} 49. a7 {[%emt 0:00:00] [#]} Nc7 $1 {[%emt 0:00:26][%mdl 512]} 50. Qb4 {[%emt 0:00:00]} (50. Qxc7 Qd5+) 50... b1=Q {[%emt 0:02:02]} 51. Qh4+ {[%emt 0:00:00]} Kg6 {[%emt 0:03:08]} 52. Qg4+ {[%emt 0:00:00] [#]} Kf7 $1 {[%emt 0:00:11]} 53. Qf4+ {[%emt 0:00:00]} Kg8 {[%emt 0:00:12]} 54. Qxc7 {[%emt 0:00:00]} Qd5+ {[%emt 0:00:15] Weighted Error Value: White=0.62/Black=0.08 (flawless)} 0-1